bitfinex/quotes_BTCUSD_20250109
["timestamp","ask_amount","ask_price","bid_price","bid_amount"]
[1736466784099,0.005,92672.0,92657.0,0.10444729]
[1736466784737,0.001,92672.0,92665.0,0.215831]
[1736466785148,0.003,92671.0,92665.0,0.215831]
[1736466785282,0.13444391,92675.0,92665.0,0.215831]
[1736466785492,0.001,92671.0,92665.0,0.215831]
[1736466785912,0.003,92672.0,92665.0,0.215831]
[1736466786116,0.001,92672.0,92665.0,0.215831]
[1736466786698,0.18703111,92679.0,92667.0,0.215826]
[1736466786894,0.18703111,92679.0,92667.0,0.431652]
[1736466787139,0.40283111,92679.0,92663.0,0.215833]
[1736466787342,0.13444391,92670.0,92663.0,0.215833]
[1736466787500,0.13444391,92670.0,92659.0,0.215844]
[1736466787894,0.215832,92665.0,92657.0,0.00014753]
[1736466788119,0.00526219,92669.0,92657.0,0.00014753]
[1736466789367,0.215824,92668.0,92657.0,0.00014753]
[1736466789587,0.215828,92666.0,92653.0,0.20700451]
[1736466789746,0.13444391,92663.0,92653.0,0.20700451]
[1736466790597,0.21597131,92668.0,92653.0,0.42286251]
[1736466791435,0.1,92658.0,92653.0,0.42286251]
[1736466791668,0.1,92658.0,92653.0,0.20700451]
[1736466792586,0.101,92658.0,92653.0,0.20700451]
[1736466793825,0.101,92658.0,92655.0,0.215853]
[1736466794987,0.1,92658.0,92655.0,0.431706]
[1736466795176,0.1,92658.0,92655.0,0.42270598]
[1736466795479,0.1,92658.0,92655.0,0.20885298]
[1736466795825,0.13623063,92658.0,92655.0,0.20885298]
[1736466796433,0.13623063,92658.0,92655.0,0.42470598]
[1736466796649,0.13623063,92658.0,92655.0,0.42570598]
[1736466796876,0.13623063,92658.0,92655.0,0.003]
[1736466797416,0.13623063,92658.0,92656.0,0.215852]
[1736466797642,0.01362306,92657.0,92655.0,0.001]
[1736466797846,0.13623063,92658.0,92655.0,0.001]
[1736466798051,0.13723063,92658.0,92650.0,0.215865]
[1736466798254,0.13623063,92658.0,92650.0,0.43173]
[1736466798455,0.13623063,92658.0,92650.0,0.215865]
[1736466798654,0.13723063,92658.0,92650.0,0.215865]
[1736466799071,0.13623063,92658.0,92650.0,0.215865]
[1736466799430,0.13723063,92658.0,92650.0,0.215865]
[1736466799630,0.13723063,92658.0,92650.0,0.20686498]
[1736466799828,0.215852,92656.0,92640.0,0.215888]
[1736466800260,0.13444391,92652.0,92634.0,0.215901]
[1736466800457,0.13444391,92644.0,92634.0,0.215901]
[1736466800955,0.215882,92643.0,92633.0,0.215905]
[1736466801732,0.13444391,92644.0,92633.0,0.215905]
[1736466802226,0.13744391,92644.0,92633.0,0.215905]
[1736466802454,0.13444391,92644.0,92633.0,0.215905]
[1736466802650,0.001,92643.0,92633.0,0.215905]
[1736466803254,0.13444391,92644.0,92633.0,0.215905]
[1736466803510,0.13444391,92644.0,92633.0,0.43181]
[1736466803704,0.13444391,92644.0,92624.0,0.0832]
[1736466803705,0.20114438,92643.0,92626.0,0.215922]
[1736466803882,0.13444391,92636.0,92626.0,0.215922]
[1736466804091,0.01344439,92635.0,92626.0,0.215922]
[1736466804741,0.01344439,92635.0,92626.0,0.20692198]
[1736466805167,0.00014723,92635.0,92626.0,0.20792198]
[1736466805375,0.00014723,92635.0,92626.0,0.20692198]
[1736466805584,0.00014723,92635.0,92626.0,0.20892198]
[1736466806818,0.00014723,92635.0,92626.0,0.20992198]
[1736466807473,0.00014723,92635.0,92626.0,0.20692198]
[1736466808277,0.00214723,92635.0,92626.0,0.20692198]
[1736466809469,0.00314723,92635.0,92626.0,0.20692198]
[1736466809680,0.00314723,92635.0,92626.0,0.41384396]
[1736466810697,0.00314723,92635.0,92630.0,0.21591]
[1736466811431,0.00314723,92635.0,92626.0,0.19792196]
[1736466811629,0.00114723,92635.0,92626.0,0.19792196]
[1736466811833,0.00014723,92635.0,92626.0,0.19792196]
[1736466812041,0.00114723,92635.0,92626.0,0.19792196]
[1736466812596,0.00014723,92635.0,92626.0,0.19792196]
[1736466814058,0.00114723,92635.0,92626.0,0.19792196]
[1736466814485,0.00114723,92635.0,92627.0,0.215919]
[1736466814848,0.00114723,92635.0,92627.0,0.20691898]
[1736466815458,0.00014723,92635.0,92627.0,0.20691898]
[1736466815657,0.00114723,92635.0,92627.0,0.20691898]
[1736466819656,0.00114723,92635.0,92627.0,0.19791896]
[1736466819878,0.02170412,92634.0,92627.0,0.19791896]
[1736466820427,0.02170412,92634.0,92624.0,0.0832]
[1736466820629,0.00542381,92633.0,92620.0,0.0001704]
[1736466820758,0.215927,92624.0,92620.0,0.0001704]
[1736466820959,0.431854,92624.0,92620.0,0.0001704]
[1736466821907,0.431854,92624.0,92620.0,0.0021704]
[1736466822108,0.433854,92624.0,92620.0,0.0021704]
[1736466822311,0.431854,92624.0,92620.0,0.0001704]
[1736466822463,0.31277562,92622.0,92620.0,0.0001704]
[1736466822671,0.10429976,92621.0,92620.0,0.0001704]
[1736466824592,0.10429976,92621.0,92605.0,0.20730978]
[1736466824789,0.215946,92616.0,92605.0,0.20730978]
[1736466825000,0.23765012,92616.0,92605.0,0.20730978]
[1736466825903,0.23765012,92616.0,92605.0,0.20830978]
[1736466826112,0.23765012,92616.0,92605.0,0.21030978]
[1736466826483,0.23765012,92616.0,92605.0,0.003]
[1736466827603,0.23765012,92616.0,92605.0,0.001]
[1736466827945,0.01071735,92615.0,92604.0,0.215972]
[1736466828759,0.21595,92614.0,92604.0,0.215972]
[1736466829662,0.21595,92614.0,92604.0,0.20697198]
[1736466830636,0.21595,92614.0,92602.0,0.215978]
[1736466831292,0.21695,92614.0,92602.0,0.215978]
[1736466831500,0.02170412,92613.0,92602.0,0.215978]
[1736466834748,0.25158475,92614.0,92602.0,0.20697798]
[1736466836012,0.25258475,92614.0,92602.0,0.20697798]
[1736466836237,0.1829469,92617.0,92602.0,0.20697798]
[1736466837166,0.2,92604.0,92602.0,0.20697798]
[1736466837407,0.2,92604.0,92601.0,0.128]
[1736466838358,0.2,92604.0,92602.0,0.001]
[1736466838745,0.2,92604.0,92601.0,0.1304919]
[1736466839269,0.2,92604.0,92602.0,0.215978]
[1736466839661,0.2,92604.0,92602.0,0.20697798]
[1736466840416,0.2,92604.0,92601.0,0.1284919]
[1736466840638,0.2,92604.0,92602.0,0.001]
[1736466840857,0.2,92604.0,92602.0,0.003]
[1736466841267,0.23665016,92604.0,92602.0,0.002]
[1736466841470,0.23665016,92604.0,92601.0,0.1294919]
[1736466842029,0.23665016,92604.0,92602.0,0.001]
[1736466842360,0.2,92604.0,92603.0,0.215975]
[1736466842990,0.2,92604.0,92602.0,0.001]
[1736466843369,0.2,92604.0,92603.0,0.215975]
[1736466844682,0.2,92604.0,92603.0,0.20697498]
[1736466845024,0.2,92604.0,92603.0,0.20897498]
[1736466845427,0.2,92604.0,92603.0,0.20997498]
[1736466849332,0.2,92604.0,92603.0,0.003]
[1736466849558,0.2,92604.0,92602.0,0.215978]
[1736466850714,0.2,92604.0,92602.0,0.216978]
[1736466852534,0.03608146,92613.0,92602.0,0.001]
[1736466852762,0.215957,92611.0,92602.0,0.001]
[1736466852931,0.215966,92607.0,92602.0,0.001]
[1736466853238,0.00544825,92617.0,92602.0,0.001]
[1736466853404,0.215959,92610.0,92601.0,0.12249188]
[1736466854245,0.001,92613.0,92601.0,0.12249188]
[1736466854447,0.215945,92616.0,92602.0,0.001]
[1736466854602,0.215965,92608.0,92601.0,0.11449186]
[1736466855552,0.215975,92604.0,92601.0,0.11449186]
[1736466855722,0.215965,92608.0,92601.0,0.11449186]
[1736466856707,0.215965,92608.0,92602.0,0.001]
[1736466856882,0.215965,92608.0,92601.0,0.11449186]
[1736466857296,0.217965,92608.0,92601.0,0.11449186]
[1736466857699,0.215965,92608.0,92601.0,0.11449186]
[1736466857853,0.217965,92608.0,92601.0,0.11449186]
[1736466858268,0.215965,92608.0,92601.0,0.11449186]
[1736466858471,0.2,92620.0,92604.0,0.00315538]
[1736466858679,0.002,92608.0,92605.0,0.0798]
[1736466858880,0.002,92608.0,92605.0,0.511742]
[1736466859082,0.002,92608.0,92605.0,0.295771]
[1736466859292,0.002,92608.0,92601.0,0.0004919]
[1736466859529,0.00558985,92607.0,92601.0,0.0004919]
[1736466859740,0.10988961,92607.0,92588.0,0.216009]
[1736466860087,0.215973,92604.0,92588.0,0.216009]
[1736466860304,0.215984,92600.0,92589.0,0.216008]
[1736466861373,0.215984,92600.0,92587.0,0.216011]
[1736466861573,0.215984,92600.0,92589.0,0.002]
[1736466861821,0.215984,92600.0,92587.0,0.216011]
[1736466862236,0.218984,92600.0,92587.0,0.216011]
[1736466862470,0.215984,92600.0,92587.0,0.216011]
[1736466862673,0.13366684,92608.0,92589.0,0.001]
[1736466862674,0.18682222,92608.0,92589.0,0.001]
[1736466862889,0.18682222,92608.0,92597.0,0.215989]
[1736466863608,0.001,92600.0,92594.0,0.215994]
[1736466863942,0.215966,92607.0,92594.0,0.215994]
[1736466864573,0.004,92600.0,92594.0,0.20699398]
[1736466864782,0.215966,92607.0,92594.0,0.20699398]
[1736466865003,0.218966,92607.0,92594.0,0.20699398]
[1736466866599,0.219966,92607.0,92594.0,0.20699398]
[1736466869123,0.2,92600.0,92594.0,0.20699398]
[1736466869727,0.2,92600.0,92594.0,0.19799396]
[1736466873369,0.201,92600.0,92586.0,0.12046228]
[1736466873579,0.215985,92599.0,92587.0,0.216013]
[1736466874188,0.215985,92599.0,92586.0,0.12046228]
[1736466874370,0.215989,92597.0,92586.0,0.12046228]
[1736466874567,0.15,92599.0,92578.0,0.06599998]
[1736466874773,0.13444391,92590.0,92579.0,0.216031]
[1736466874978,0.13444391,92590.0,92578.0,0.06599998]
[1736466874979,0.216008,92589.0,92578.0,0.06599998]
[1736466875179,0.00567241,92589.0,92577.0,0.04654754]
[1736466875568,0.21603,92580.0,92577.0,0.04654754]
[1736466875773,0.10429976,92588.0,92577.0,0.04654754]
[1736466876066,0.216022,92583.0,92577.0,0.04654754]
[1736466876263,0.432048,92582.0,92578.0,0.001]
[1736466876462,0.216013,92587.0,92578.0,0.001]
[1736466876663,0.216029,92580.0,92577.0,0.00014754]
[1736466877733,0.220029,92580.0,92577.0,0.00014754]
[1736466878133,0.216029,92580.0,92577.0,0.00014754]
[1736466878608,0.217029,92580.0,92577.0,0.00014754]
[1736466878748,0.220029,92580.0,92577.0,0.00014754]
[1736466879153,0.219029,92580.0,92577.0,0.00014754]
[1736466879381,0.220029,92580.0,92577.0,0.00014754]
[1736466879556,0.220029,92580.0,92570.0,0.06738772]
[1736466879754,0.00413249,92580.0,92570.0,0.06738772]
[1736466880729,0.21716149,92580.0,92570.0,0.06738772]
[1736466880884,0.22016149,92580.0,92570.0,0.06738772]
[1736466881289,0.22016149,92580.0,92571.0,0.21605]
[1736466881892,0.00313249,92580.0,92571.0,0.21605]
[1736466882070,0.00113249,92580.0,92571.0,0.21605]
[1736466882500,0.00113249,92580.0,92570.0,0.06738772]
[1736466882696,0.00013249,92580.0,92578.0,0.216033]
[1736466882902,0.00013249,92580.0,92575.0,0.216039]
[1736466882903,0.00113249,92580.0,92575.0,0.216039]
[1736466883638,0.00313249,92580.0,92575.0,0.216039]
[1736466883837,0.00013249,92580.0,92572.0,0.216045]
[1736466884314,0.02174724,92580.0,92571.0,0.21605]
[1736466884514,0.00013249,92580.0,92571.0,0.21605]
[1736466884718,0.00013249,92580.0,92571.0,0.20704998]
[1736466885299,0.00413249,92580.0,92572.0,0.216048]
[1736466885695,0.00413249,92580.0,92571.0,0.20704998]
[1736466886622,0.00113249,92580.0,92571.0,0.20704998]
[1736466886819,0.00313249,92580.0,92571.0,0.20704998]
[1736466887240,0.00113249,92580.0,92571.0,0.20704998]
[1736466887391,0.00313249,92580.0,92571.0,0.20704998]
[1736466888672,0.00213249,92580.0,92571.0,0.20704998]
[1736466889435,0.00213249,92580.0,92575.0,0.21604]
[1736466889699,0.00213249,92580.0,92575.0,0.20703998]
[1736466889965,0.00213249,92580.0,92571.0,0.20704998]
[1736466890168,0.00013249,92580.0,92571.0,0.20704998]
[1736466890626,0.00213249,92580.0,92571.0,0.20704998]
[1736466890829,0.00013249,92580.0,92571.0,0.20704998]
[1736466891058,0.00213249,92580.0,92571.0,0.20704998]
[1736466893881,0.00213249,92580.0,92571.0,0.42309998]
[1736466894078,0.00213249,92580.0,92575.0,0.21604]
[1736466894656,0.00213249,92580.0,92575.0,0.20703998]
[1736466894914,0.00213249,92580.0,92571.0,0.20704998]
[1736466895426,0.00213249,92580.0,92575.0,0.21604]
[1736466896179,0.00013249,92580.0,92575.0,0.21604]
[1736466896868,0.00113249,92580.0,92575.0,0.21604]
[1736466898371,0.00113249,92580.0,92571.0,0.20704998]
[1736466898619,0.02284724,92580.0,92571.0,0.20704998]
[1736466899151,0.00113249,92580.0,92571.0,0.20704998]
[1736466899592,0.00013249,92580.0,92571.0,0.19804996]
[1736466900085,0.2,92575.0,92571.0,0.19804996]
[1736466903461,0.201,92575.0,92571.0,0.41409996]
[1736466903713,0.2,92575.0,92571.0,0.41409996]
[1736466904746,0.2,92575.0,92571.0,0.40509994]
[1736466904987,0.2,92575.0,92571.0,0.18904994]
[1736466906843,0.2,92575.0,92569.0,0.0001702]
[1736466907046,0.15,92574.0,92569.0,0.0001702]
[1736466908078,0.15,92572.0,92569.0,0.0001702]
[1736466909561,0.15,92572.0,92561.0,0.20792438]
[1736466909761,0.08838919,92571.0,92561.0,0.20792438]
[1736466911727,0.30443919,92571.0,92561.0,0.20792438]
[1736466911883,0.001,92571.0,92561.0,0.20792438]
[1736466912088,0.001,92571.0,92564.0,0.00315538]
[1736466912329,0.001,92571.0,92570.0,0.216052]
[1736466912876,0.2,92575.0,92570.0,0.216052]
[1736466913006,0.001,92571.0,92570.0,0.216052]
[1736466913210,0.2,92575.0,92570.0,0.216052]
[1736466914474,0.2,92575.0,92566.0,0.216062]
[1736466914833,0.2,92575.0,92565.0,0.07129998]
[1736466915009,0.216043,92574.0,92565.0,0.07129998]
[1736466915945,0.2,92575.0,92566.0,0.216062]
[1736466916079,0.203,92575.0,92566.0,0.216062]
[1736466916420,0.2,92575.0,92566.0,0.18905832]
[1736466918002,0.003,92574.0,92566.0,0.18905832]
[1736466918282,0.004,92574.0,92566.0,0.18905832]
[1736466918485,0.001,92574.0,92566.0,0.18905832]
[1736466919539,0.2,92575.0,92566.0,0.1800583]
[1736466919946,0.002,92574.0,92566.0,0.1800583]
[1736466921422,0.2,92575.0,92566.0,0.1800583]
[1736466921654,0.21604,92576.0,92566.0,0.1800583]
[1736466921859,0.002,92575.0,92566.0,0.1800583]
[1736466921991,0.21604,92576.0,92566.0,0.1800583]
[1736466922376,0.002,92574.0,92566.0,0.1800583]
[1736466922755,0.21604,92576.0,92566.0,0.1800583]
[1736466922962,0.002,92575.0,92566.0,0.1800583]
[1736466923487,0.001,92575.0,92566.0,0.1800583]
[1736466924713,0.002,92574.0,92566.0,0.17105828]
[1736466924937,0.002,92574.0,92565.0,0.07129998]
[1736466925538,0.001,92575.0,92565.0,0.07129998]
[1736466925713,0.002,92575.0,92565.0,0.07129998]
[1736466926123,0.21604,92576.0,92566.0,0.216062]
[1736466926529,0.002,92574.0,92566.0,0.216062]
[1736466927666,0.216054,92570.0,92562.0,0.0483]
[1736466928031,0.216045,92573.0,92562.0,0.264369]
[1736466929464,0.219045,92573.0,92562.0,0.264369]
[1736466929688,0.219045,92573.0,92562.0,0.25536898]
[1736466931063,0.216045,92573.0,92562.0,0.25536898]
[1736466931269,0.217045,92573.0,92562.0,0.25536898]
[1736466931466,0.221045,92573.0,92562.0,0.25536898]
[1736466932351,0.217045,92573.0,92562.0,0.25536898]
[1736466932544,0.216045,92573.0,92562.0,0.25536898]
[1736466932772,0.216048,92572.0,92562.0,0.03929998]
[1736466933539,0.216048,92572.0,92562.0,0.25536898]
[1736466933840,0.220045,92573.0,92562.0,0.25536898]
[1736466934307,0.219045,92573.0,92562.0,0.03929998]
[1736466934480,0.217045,92573.0,92562.0,0.03929998]
[1736466934721,0.21605,92571.0,92562.0,0.03029996]
[1736466935855,0.21805,92571.0,92562.0,0.03029996]
[1736466936754,0.16970004,92562.0,92561.0,0.216073]
[1736466938008,0.16970004,92562.0,92561.0,0.217073]
[1736466939750,0.16970004,92562.0,92561.0,0.25417298]
[1736466939959,0.16970004,92562.0,92561.0,0.25617298]
[1736466942094,0.16970004,92562.0,92561.0,0.36362812]
[1736466942265,0.16970004,92562.0,92561.0,0.44182812]
[1736466943073,0.16970004,92562.0,92561.0,0.55026099]
[1736466943338,0.11970004,92562.0,92561.0,0.61482812]
[1736466943524,0.04160004,92562.0,92561.0,0.62262812]
[1736466943747,0.00013249,92580.0,92579.0,0.36918638]
[1736466943898,0.00013249,92580.0,92579.0,0.62038614]
[1736466944095,0.00013249,92580.0,92579.0,0.7246859]
[1736466944340,0.00013249,92580.0,92579.0,0.7236859]
[1736466944702,0.00013249,92580.0,92579.0,0.71468588]
[1736466944900,0.00113249,92580.0,92579.0,0.71468588]
[1736466945304,0.00013249,92580.0,92579.0,0.71468588]
[1736466945504,0.00113249,92580.0,92579.0,0.71468588]
[1736466945968,60.0,92906.0,92582.0,0.0782]
[1736466946170,0.00014751,92618.0,92587.0,0.0782]
[1736466946434,0.21608851,92618.0,92607.0,0.215964]
[1736466947242,0.00014751,92618.0,92607.0,0.215964]
[1736466947441,0.00214751,92618.0,92607.0,0.215964]
[1736466947874,0.00214751,92618.0,92607.0,0.214964]
[1736466948297,0.00214751,92618.0,92608.0,0.0430937]
[1736466948494,0.00214751,92618.0,92607.0,0.10529976]
[1736466948495,0.00814751,92618.0,92607.0,0.10529976]
[1736466948698,0.00614751,92618.0,92607.0,0.10529976]
[1736466949135,0.00214751,92618.0,92615.0,0.215947]
[1736466949637,0.00614751,92618.0,92615.0,0.215947]
[1736466949972,0.00614751,92618.0,92615.0,0.20694698]
[1736466950780,0.00014751,92618.0,92615.0,0.20694698]
[1736466951198,0.00214751,92618.0,92615.0,0.20694698]
[1736466951398,0.00214751,92618.0,92557.0,0.3]
[1736466951399,0.00014751,92618.0,92601.0,0.215978]
[1736466951604,0.00014751,92618.0,92599.0,0.0758]
[1736466951815,0.00014751,92618.0,92615.0,0.003]
[1736466952224,0.00014751,92618.0,92615.0,0.002]
[1736466952564,0.00014751,92618.0,92608.0,0.215962]
[1736466953365,0.00114751,92618.0,92608.0,0.215962]
[1736466953515,0.00114751,92618.0,92604.0,0.215973]
[1736466953719,0.00114751,92618.0,92609.0,0.215959]
[1736466953943,0.00414751,92618.0,92605.0,0.215971]
[1736466954146,0.00114751,92618.0,92605.0,0.215971]
[1736466954573,0.00414751,92618.0,92605.0,0.20697098]
[1736466954738,0.00314751,92618.0,92605.0,0.20697098]
[1736466954931,0.00414751,92618.0,92605.0,0.20697098]
[1736466955247,0.00114751,92618.0,92605.0,0.20697098]
[1736466955428,0.00014751,92618.0,92605.0,0.20697098]
[1736466955628,0.00114751,92618.0,92605.0,0.20697098]
[1736466956034,0.215943,92617.0,92605.0,0.20697098]
[1736466956441,0.00589577,92616.0,92605.0,0.20697098]
[1736466956614,0.0772,92615.0,92605.0,0.20697098]
[1736466959249,0.0792,92615.0,92605.0,0.20697098]
[1736466959452,0.0802,92615.0,92605.0,0.20697098]
[1736466959794,0.0792,92615.0,92605.0,0.19797096]
[1736466961077,0.0772,92615.0,92605.0,0.19797096]
[1736466961410,0.00014751,92618.0,92605.0,0.41394196]
[1736466961615,0.00014751,92618.0,92607.0,0.215966]
[1736466961999,0.006,92615.0,92607.0,0.215966]
[1736466962406,0.00014751,92618.0,92607.0,0.215966]
[1736466962653,0.00114751,92618.0,92607.0,0.215966]
[1736466962801,0.215943,92617.0,92605.0,0.19797096]
[1736466963006,0.215943,92617.0,92595.0,0.215993]
[1736466963007,0.215947,92615.0,92603.0,0.215974]
[1736466964253,0.22184192,92617.0,92603.0,0.215974]
[1736466964656,0.215943,92617.0,92603.0,0.20697398]
[1736466964860,0.22184192,92617.0,92603.0,0.20697398]
[1736466965758,0.215953,92613.0,92603.0,0.20697398]
[1736466966074,0.15,92611.0,92580.0,0.0472]
[1736466966283,0.215991,92597.0,92578.0,0.0807]
[1736466966480,0.215991,92597.0,92581.0,0.216025]
[1736466966685,0.215992,92596.0,92581.0,0.216025]
[1736466967074,0.21601,92589.0,92578.0,0.0807]
[1736466967564,0.216001,92592.0,92578.0,0.0807]
[1736466967761,0.216001,92592.0,92579.0,0.216031]
[1736466967958,0.216001,92592.0,92579.0,0.432062]
[1736466968203,0.216001,92592.0,92582.0,0.216022]
[1736466968401,4.915e-05,92592.0,92582.0,0.216022]
[1736466968670,0.00204915,92592.0,92590.0,0.216005]
[1736466969119,4.915e-05,92592.0,92591.0,0.1307]
[1736466969324,0.00204915,92592.0,92591.0,0.1307]
[1736466969714,0.00204915,92592.0,92591.0,0.12169998]
[1736466970553,0.00204915,92592.0,92590.0,0.216005]
[1736466971333,4.915e-05,92592.0,92590.0,0.216005]
[1736466971542,0.00204915,92592.0,92590.0,0.216005]
[1736466974419,0.00204915,92592.0,92583.0,0.216022]
[1736466974621,0.00204915,92592.0,92584.0,0.20701998]
[1736466974827,0.00204915,92592.0,92582.0,0.0808]
[1736466975459,4.915e-05,92592.0,92582.0,0.0808]
[1736466975854,0.00204915,92592.0,92588.0,0.21601]
[1736466976075,4.915e-05,92592.0,92588.0,0.21601]
[1736466976503,0.00204915,92592.0,92588.0,0.43202]
[1736466978038,0.00204915,92592.0,92588.0,0.43302]
[1736466978344,4.915e-05,92592.0,92588.0,0.43302]
[1736466978555,0.21104095,92603.0,92588.0,0.43302]
[1736466979048,0.21104095,92603.0,92591.0,0.432004]
[1736466979245,0.15,92604.0,92594.0,0.215995]
[1736466979598,0.15,92604.0,92594.0,0.20699498]
[1736466979794,0.004,92603.0,92594.0,0.20699498]
[1736466980568,0.15,92604.0,92594.0,0.20699498]
[1736466980917,0.001,92603.0,92594.0,0.20699498]
[1736466981268,0.19452979,92604.0,92594.0,0.20699498]
[1736466981472,0.216975,92603.0,92589.0,0.216008]
[1736466982029,0.219975,92603.0,92589.0,0.216008]
[1736466982167,0.215975,92603.0,92589.0,0.216008]
[1736466982373,0.00600078,92602.0,92589.0,0.216008]
[1736466982581,0.00600078,92602.0,92589.0,0.432016]
[1736466983742,0.00800078,92602.0,92589.0,0.432016]
[1736466984088,0.1,92600.0,92589.0,0.432016]
[1736466984708,0.1,92600.0,92589.0,0.42301598]
[1736466985108,0.1,92600.0,92593.0,0.215998]
[1736466985308,0.101,92600.0,92593.0,0.215998]
[1736466986147,0.1,92600.0,92593.0,0.215998]
[1736466989114,0.1,92600.0,92582.0,0.0808]
[1736466989357,0.215985,92599.0,92588.0,0.21601]
[1736466989740,0.215985,92599.0,92588.0,0.20700998]
[1736466989944,0.00602018,92598.0,92582.0,4.915e-05]
[1736466990147,0.215992,92596.0,92582.0,4.915e-05]
[1736466990349,0.15,92591.0,92582.0,4.915e-05]
[1736466990576,0.216017,92586.0,92582.0,4.915e-05]
[1736466993795,0.216017,92586.0,92582.0,0.00104915]
[1736466994940,0.25961585,92586.0,92582.0,0.00204915]
[1736466995142,0.26564944,92586.0,92572.0,0.20909613]
[1736466995861,0.216017,92585.0,92569.0,0.0786702]
[1736466995996,0.216028,92581.0,92570.0,0.21618449]
[1736466997499,0.21602,92584.0,92570.0,0.21618449]
[1736466997676,0.21602,92584.0,92570.0,0.21718449]
[1736466998265,0.21602,92584.0,92570.0,0.21618449]
[1736466999134,0.21602,92584.0,92570.0,0.21818449]
[1736466999364,0.21602,92584.0,92570.0,0.21618449]
[1736466999744,0.21602,92584.0,92570.0,0.20718447]
[1736467000510,0.04359885,92586.0,92571.0,0.21605]
[1736467000700,0.15,92589.0,92571.0,0.21605]
[1736467001734,0.15,92589.0,92578.0,0.216032]
[1736467002272,0.1,92600.0,92585.0,0.0802]
[1736467002554,0.15,92599.0,92587.0,0.216013]
[1736467002733,0.215987,92598.0,92587.0,0.216013]
[1736467003266,0.14501955,92600.0,92586.0,0.0497]
[1736467003478,0.002,92589.0,92586.0,0.15507977]
[1736467003783,0.1,92600.0,92595.0,0.215993]
[1736467003966,0.002,92598.0,92595.0,0.215993]
[1736467004400,0.1,92600.0,92595.0,0.215993]
[1736467004606,0.1,92600.0,92595.0,0.20699298]
[1736467005241,0.006,92598.0,92595.0,0.20699298]
[1736467005450,0.1,92600.0,92595.0,0.20699298]
[1736467005882,0.102,92600.0,92595.0,0.20699298]
[1736467006316,0.102,92600.0,92599.0,0.215985]
[1736467006633,0.04312717,92602.0,92595.0,0.20699298]
[1736467006825,0.001,92598.0,92586.0,0.15399976]
[1736467007038,0.001,92598.0,92596.0,0.215992]
[1736467007251,0.001,92598.0,92597.0,0.18657971]
[1736467007467,0.001,92598.0,92597.0,0.23577954]
[1736467007726,0.001,92598.0,92597.0,0.23469976]
[1736467008332,0.04481938,92618.0,92598.0,0.647961]
[1736467008534,0.00014748,92618.0,92599.0,0.10429976]
[1736467008737,0.00014748,92618.0,92599.0,0.10529976]
[1736467008876,0.00014748,92618.0,92611.0,0.215956]
[1736467009597,0.00014748,92618.0,92611.0,0.20695598]
[1736467010034,0.00514748,92618.0,92611.0,0.20695598]
[1736467010231,0.00014748,92618.0,92611.0,0.20695598]
[1736467010846,0.00214748,92618.0,92611.0,0.20695598]
[1736467011794,0.00214748,92618.0,92608.0,0.215962]
[1736467012155,0.00714748,92618.0,92612.0,0.215953]
[1736467012659,0.00714748,92618.0,92603.0,0.215975]
[1736467012876,0.00014748,92618.0,92609.0,0.215959]
[1736467013234,0.00714748,92618.0,92609.0,0.215959]
[1736467013583,0.00214748,92618.0,92609.0,0.215959]
[1736467014181,0.00014748,92618.0,92609.0,0.215959]
[1736467014643,0.00214748,92618.0,92609.0,0.215959]
[1736467015021,0.05015806,92618.0,92609.0,0.20695898]
[1736467015559,0.04515806,92618.0,92609.0,0.20695898]
[1736467015906,0.05015806,92618.0,92609.0,0.20695898]
[1736467019125,0.05015806,92618.0,92611.0,0.215955]
[1736467019330,0.05015806,92618.0,92608.0,0.215963]
[1736467019535,0.05015806,92618.0,92608.0,0.20696298]
[1736467019977,0.04815806,92618.0,92608.0,0.20696298]
[1736467020275,0.04815806,92618.0,92612.0,0.215954]
[1736467020405,0.05015806,92618.0,92612.0,0.215954]
[1736467020781,0.05015806,92618.0,92608.0,0.20696298]
[1736467020983,0.04815806,92618.0,92608.0,0.20696298]
[1736467021278,0.04315806,92618.0,92608.0,0.20696298]
[1736467021485,0.04315806,92618.0,92612.0,0.215953]
[1736467021683,0.04815806,92618.0,92612.0,0.215953]
[1736467022301,0.05015806,92618.0,92612.0,0.215953]
[1736467022508,0.04515806,92618.0,92612.0,0.215953]
[1736467022699,0.04815806,92618.0,92612.0,0.215953]
[1736467023113,0.05015806,92618.0,92612.0,0.215953]
[1736467024553,0.05015806,92618.0,92612.0,0.20695298]
[1736467024878,0.05015806,92618.0,92610.0,0.215959]
[1736467025864,0.04815806,92618.0,92610.0,0.215959]
[1736467026071,0.04515806,92618.0,92610.0,0.215959]
[1736467026297,0.05015806,92618.0,92610.0,0.215959]
[1736467026791,0.04815806,92618.0,92610.0,0.215959]
[1736467026994,0.05015806,92618.0,92610.0,0.215959]
[1736467027414,0.215943,92617.0,92607.0,0.215964]
[1736467028352,0.04315806,92618.0,92607.0,0.215964]
[1736467029212,0.25910006,92618.0,92607.0,0.215964]
[1736467029410,0.26010006,92618.0,92607.0,0.215964]
[1736467029633,0.26010006,92618.0,92607.0,0.20696398]
[1736467030794,0.25910006,92618.0,92607.0,0.20696398]
[1736467031170,0.26010006,92618.0,92607.0,0.20696398]
[1736467031623,0.04415806,92618.0,92602.0,0.215978]
[1736467031827,0.294343,92617.0,92602.0,0.215976]
[1736467032145,0.215945,92616.0,92602.0,0.215976]
[1736467032350,0.21595,92614.0,92602.0,0.215976]
[1736467034660,0.21595,92614.0,92602.0,0.20697598]
[1736467035084,0.21595,92614.0,92602.0,0.20797598]
[1736467035618,0.22200423,92616.0,92602.0,0.20797598]
[1736467035843,0.215945,92616.0,92602.0,0.20697598]
[1736467036020,0.00606055,92615.0,92602.0,0.20697598]
[1736467036754,0.21595,92614.0,92602.0,0.20697598]
[1736467037461,0.002,92614.0,92606.0,0.215968]
[1736467037880,0.002,92614.0,92603.0,0.215975]
[1736467038511,0.215945,92616.0,92603.0,0.215975]
[1736467038899,0.001,92614.0,92603.0,0.215975]
[1736467039199,0.215945,92616.0,92603.0,0.215975]
[1736467039542,0.215945,92616.0,92603.0,0.20697498]
[1736467040362,0.215945,92616.0,92606.0,0.215966]